bitfinex-derivatives/quotes_SOLF0:USTF0_20241005
["timestamp","ask_amount","ask_price","bid_price","bid_amount"]
[1728098110242,11.1044,141.86,141.81,11.1054]
[1728098110745,11.1044,141.86,141.81,7.58]
[1728098111051,7.58,141.86,141.82,3.5253]
[1728098111245,5.16,141.88,141.82,7.58]
[1728098111449,7.58,141.88,141.82,7.58]
[1728098111653,7.58,141.88,141.84,7.58]
[1728098111858,82.74978363,141.89,141.85,7.58]
[1728098112451,90.32978363,141.89,141.85,7.58]
[1728098112653,7.58,141.87,141.82,4.1569]
[1728098112850,7.58,141.87,141.82,11.7369]
[1728098113351,87.90978363,141.89,141.82,11.7369]
[1728098113352,7.58,141.86,141.82,11.7369]
[1728098113746,11.1044,141.86,141.82,15.2621]
[1728098113953,7.58,141.86,141.82,15.2621]
[1728098114661,7.58,141.86,141.82,7.6821]
[1728098114950,3.5253,141.83,141.79,11.1061]
[1728098115152,3.5253,141.83,141.78,5.16]
[1728098115153,7.58,141.85,141.8,7.58]
[1728098115353,7.58,141.85,141.8,11.1056]
[1728098115560,11.1047,141.85,141.8,11.1056]
[1728098116745,82.74978363,141.89,141.81,7.58]
[1728098116950,12.74,141.87,141.81,7.58]
[1728098117848,7.58,141.87,141.81,7.58]
[1728098118044,3.5244,141.86,141.82,3.5253]
[1728098118555,3.5249,141.84,141.8,3.5258]
[1728098119958,3.5251,141.83,141.8,3.5258]
[1728098120654,7.58,141.85,141.8,3.5258]
[1728098120655,3.525,141.84,141.8,3.5258]
[1728098121549,11.1053,141.83,141.79,3.5261]
[1728098121747,7.58,141.83,141.79,3.5261]
[1728098121953,7.58,141.83,141.78,14.1751]
[1728098122259,3.5254,141.82,141.78,17.7013]
[1728098124260,5.16,141.85,141.78,14.1751]
[1728098124459,5.16,141.84,141.81,3.5255]
[1728098125864,12.74,141.85,141.81,3.5255]
[1728098126163,3.5249,141.84,141.81,3.5255]
[1728098126663,3.5249,141.84,141.8,3.5258]
[1728098127961,7.58,141.83,141.8,3.5258]
[1728098129571,11.1051,141.83,141.8,3.5258]
[1728098129868,7.58,141.83,141.8,3.5258]
[1728098130969,11.1051,141.83,141.8,3.5258]
[1728098131654,3.5259,141.8,141.78,6.5951]
[1728098132060,3.5259,141.8,141.78,1.4351]
[1728098138970,3.5264,141.78,141.77,0.12502]
[1728098147772,7.58,141.8,141.77,0.12502]
[1728098148977,5.16,141.81,141.77,0.12502]
[1728098148978,7.58,141.81,141.77,0.12502]
[1728098149973,11.1058,141.81,141.77,0.12502]
[1728098150178,11.1058,141.81,141.78,3.5263]
[1728098155090,7.58,141.81,141.77,0.12502]
[1728098155276,3.5259,141.8,141.77,3.65152]
[1728098156080,7.58,141.78,141.77,0.12502]
[1728098157183,11.1064,141.78,141.77,0.12502]
[1728098160091,3.5264,141.78,141.77,0.12502]
[1728098160286,11.1064,141.78,141.77,0.12502]
[1728098166385,7.58,141.78,141.77,0.12502]
[1728098167996,3.526,141.8,141.77,3.65162]
[1728098168194,7.58,141.79,141.77,3.65162]
[1728098168796,7.58,141.79,141.77,0.12502]
[1728098168999,11.1064,141.78,141.77,0.12502]
[1728098170712,3.5264,141.78,141.77,0.12502]
[1728098171010,11.1064,141.78,141.77,0.12502]
[1728098179709,2.8133,141.84,141.77,0.12502]
[1728098179906,8.62962339,141.85,141.77,0.12502]
[1728098180106,7.58,141.81,141.77,1.56262]
[1728098180505,7.58,141.81,141.78,3.5262]
[1728098181116,11.1056,141.81,141.78,3.5262]
[1728098182321,7.58,141.8,141.77,2.94292]
[1728098183312,3.5261,141.79,141.77,2.94292]
[1728098186520,7.58,141.78,141.77,2.94292]
[1728098186726,7.58,141.78,141.77,1.56262]
[1728098187221,11.1064,141.78,141.77,0.12502]
[1728098195432,3.5264,141.78,141.77,0.12502]
[1728098195633,11.1064,141.78,141.77,0.12502]
[1728098198042,11.1064,141.78,141.77,19.0619316]
[1728098201038,11.1064,141.78,141.77,18.9369116]
[1728098201251,3.5276,141.73,141.71,0.12502]
[1728098201430,7.58,141.72,141.71,0.12502]
[1728098201734,3.28967609,141.72,141.71,0.12502]
[1728098201930,3.5276,141.73,141.71,0.12502]
[1728098202140,7.58,141.72,141.71,0.12502]
[1728098202440,5.16,141.78,141.71,0.12502]
[1728098202740,7.58,141.73,141.71,0.12502]
[1728098202929,11.1077,141.73,141.71,0.12502]
[1728098204342,3.5279,141.72,141.71,0.12502]
[1728098204641,11.1079,141.72,141.71,0.12502]
[1728098207231,3.5279,141.72,141.71,0.12502]
[1728098207433,11.1079,141.72,141.71,0.12502]
[1728098209448,3.5279,141.72,141.71,0.12502]
[1728098209743,11.1078,141.73,141.71,0.12502]
[1728098210539,5.16,141.76,141.71,0.12502]
[1728098210540,11.1073,141.75,141.71,0.12502]
[1728098210742,2.7419,141.8,141.73,7.58]
[1728098210948,7.58,141.78,141.73,7.58]
[1728098211245,3.5267,141.77,141.73,11.1074]
[1728098212137,11.1067,141.77,141.73,11.1074]
[1728098213735,11.1067,141.77,141.73,3.5274]
[1728098216449,3.5269,141.76,141.73,3.5274]
[1728098217442,5.16,141.81,141.72,14.1427]
[1728098217737,7.58,141.78,141.73,7.58]
[1728098218854,7.58,141.77,141.74,3.5273]
[1728098221143,3.5259,141.81,141.76,3.5267]
[1728098221362,3.5259,141.81,141.76,7.58]
[1728098221549,11.1059,141.81,141.77,1.3544]
[1728098221747,11.1059,141.81,141.77,4.881]
[1728098222446,7.58,141.79,141.77,1.3544]
[1728098222952,11.1062,141.79,141.77,1.3544]
[1728098225755,7.58,141.78,141.75,5.16]
[1728098225956,7.58,141.76,141.75,5.16]
[1728098226155,3.5271,141.75,141.72,6.4867]
[1728098228156,1.4414,141.84,141.74,7.58]
[1728098228358,7.58,141.8,141.76,7.58]
[1728098228864,11.106,141.8,141.76,11.1067]
[1728098229849,3.5267,141.77,141.74,1.3343]
[1728098230159,7.58,141.78,141.75,5.16]
[1728098230656,11.1066,141.78,141.75,5.16]
[1728098231444,3.5266,141.77,141.75,5.16]
[1728098232660,3.5269,141.76,141.74,1.3343]
[1728098232850,3.5269,141.76,141.74,6.4943]
[1728098234054,3.5269,141.76,141.74,1.3343]
[1728098239972,0.12502,141.83,141.75,7.58]
[1728098240159,7.58,141.81,141.76,5.16]
[1728098240467,0.12502,141.83,141.76,5.16]
[1728098240652,7.58,141.81,141.77,7.58]
[1728098241265,11.1059,141.81,141.77,3.5264]
[1728098241776,7.58,141.81,141.76,5.16]
[1728098241960,3.5259,141.8,141.76,8.6868]
[1728098244362,3.5259,141.8,141.76,5.16]
[1728098244567,3.5259,141.8,141.77,3.5266]
[1728098244973,0.12502,141.83,141.77,7.58]
[1728098245168,3.5257,141.81,141.78,11.1063]
[1728098245467,3.5257,141.81,141.79,5.16]
[1728098247071,11.1058,141.81,141.79,5.16]
[1728098249768,3.5258,141.81,141.79,5.16]
[1728098253970,0.12502,141.83,141.79,12.74]
[1728098254167,0.12502,141.83,141.8,7.58]
[1728098254476,0.12502,141.83,141.8,9.0063]
[1728098255562,0.12502,141.83,141.81,3.5255]
[1728098255767,0.12502,141.83,141.82,5.16]
[1728098257175,0.12502,141.89,141.82,33.87]
[1728098257380,0.12502,141.89,141.87,7.58]
[1728098257581,0.12502,141.89,141.88,5.16]
[1728098258275,0.12502,141.95,141.88,12.74]
[1728098258477,0.12502,141.95,141.94,7.58]
[1728098258681,0.12502,141.95,141.94,12.74]
[1728098259272,0.12502,141.95,141.94,5.16]
[1728098260480,0.12502,141.95,141.93,7.58]
[1728098260675,0.12502,141.95,141.88,2.8199]
[1728098260980,7.58,141.94,141.88,10.3999]
[1728098261179,7.58,141.94,141.89,5.16]
[1728098261180,3.5231,141.92,141.89,5.16]
[1728098261766,3.5232,141.91,141.9,5.16]
[1728098265984,0.12502,141.95,141.9,5.16]
[1728098269184,3.64722,141.95,141.9,5.16]
[1728098269383,0.12502,141.95,141.9,5.16]
[1728098270984,3.5225,141.94,141.9,8.6834]
[1728098275489,3.64722,141.95,141.92,3.5229]
[1728098275788,0.12502,141.95,141.93,5.16]
[1728098276389,0.12502,141.95,141.93,8.6824]
[1728098278291,0.12502,141.95,141.94,3.5224]
[1728098278698,0.12502,141.95,141.94,15.3624]
[1728098281405,3.5215,141.98,141.94,15.3624]
[1728098281406,3.521,142.0,141.96,3.5217]
[1728098281697,83.93673987,142.02,141.97,5.14]
[1728098282601,3.5211,142.0,141.97,8.6615]
[1728098282990,0.12502,142.07,141.99,11.84]
[1728098283289,0.12502,142.07,142.03,11.84]
[1728098283497,0.12502,142.07,142.06,7.56]
[1728098283700,0.12502,142.07,142.06,12.7]
[1728098284502,0.12502,142.07,142.06,16.2194]
[1728098285492,0.12502,142.13,142.09,3.5185]
[1728098285691,0.12502,142.13,142.1,5.14]
[1728098286587,3.5181,142.12,142.1,5.14]
[1728098287189,0.12502,142.13,142.1,5.14]
[1728098287393,3.64272,142.13,142.1,5.14]
[1728098288198,3.5179,142.12,142.1,5.14]
[1728098288993,3.5184,142.11,142.1,5.14]
[1728098290302,0.12502,142.13,142.1,5.14]
[1728098290604,3.518,142.12,142.1,5.14]
[1728098297706,11.94502,142.13,142.05,11.82]
[1728098297909,11.94502,142.13,142.06,5.14]
[1728098298910,3.5183,142.11,142.07,3.519]
[1728098299417,0.12502,142.13,142.06,5.14]
[1728098299707,3.64272,142.13,142.09,3.5185]
[1728098299910,3.64272,142.13,142.09,8.6585]
[1728098300111,3.64272,142.13,142.09,5.14]
[1728098300412,0.12502,142.13,142.09,5.14]
[1728098300711,0.12502,142.13,142.09,8.6584]
[1728098301301,0.12502,142.13,142.1,3.5182]
[1728098302110,0.12502,142.13,142.11,3.5181]
[1728098302415,0.12502,142.13,142.12,5.14]
[1728098303918,3.64272,142.13,142.12,5.14]
[1728098304811,3.64272,142.13,142.09,3.5185]
[1728098305011,3.64272,142.13,142.1,5.14]
[1728098305412,0.12502,142.13,142.1,5.14]
[1728098305615,0.12502,142.13,142.11,7.57]
[1728098306911,0.12502,142.13,142.12,5.14]
[1728098308019,3.64282,142.13,142.12,5.14]
[1728098310615,0.12502,142.13,142.12,5.14]
[1728098310804,0.12502,142.13,142.11,7.57]
[1728098311010,0.12502,142.13,142.06,2.6935]
[1728098311011,0.12502,142.13,142.12,16.2479]
[1728098311918,0.12502,142.13,142.12,12.73]
[1728098315113,0.12502,142.13,142.12,16.2479]
[1728098315514,0.12502,142.13,142.12,12.73]
[1728098316415,0.12502,142.13,142.12,16.2479]
[1728098316615,82.5779314,142.19,142.12,12.73]
[1728098316916,3.5164,142.18,142.15,7.57]
[1728098317122,82.5779314,142.19,142.16,5.16]
[1728098318118,3.5168,142.17,142.16,5.16]
[1728098319219,3.5171,142.16,142.14,5.16]
[1728098319411,3.5171,142.16,142.13,12.73]
[1728098319613,7.57,142.18,142.13,12.73]
[1728098320017,3.5172,142.15,142.13,12.73]
[1728098322625,7.57,142.14,142.08,6.3522]
[1728098322929,7.57,142.14,142.11,5.16]
[1728098323231,7.57,142.16,142.11,5.16]
[1728098323432,7.57,142.16,142.11,12.73]
[1728098323638,3.5177,142.13,142.11,5.16]
[1728098324531,82.57630063,142.19,142.11,16.98]
[1728098324723,82.57630063,142.19,142.16,3.5168]
[1728098324921,82.57630063,142.19,142.16,5.16]
[1728098325135,0.12502,142.19,142.16,5.16]
[1728098325328,0.12502,142.19,142.17,3.5165]
[1728098326431,0.12502,142.19,142.18,3.5164]
[1728098326740,0.12502,142.25,142.17,13.1681]
[1728098326936,0.12502,142.25,142.2,11.82]
[1728098327134,3.63972,142.25,142.21,5.16]
[1728098327331,0.12502,142.25,142.21,5.16]
[1728098327536,0.12502,142.25,142.22,11.82]
[1728098327737,0.12502,142.25,142.21,5.16]
[1728098328035,0.12502,142.25,142.22,5.16]
[1728098329040,3.5154,142.23,142.2,5.16]
[1728098329232,0.12502,142.25,142.2,5.16]
[1728098329845,3.5154,142.23,142.2,5.16]
[1728098331337,0.12502,142.25,142.2,5.16]
[1728098331338,3.515,142.24,142.2,5.16]
[1728098333043,3.515,142.24,142.21,5.16]
[1728098336740,3.515,142.24,142.2,3.5159]
[1728098336937,3.515,142.24,142.21,5.16]
[1728098338751,3.515,142.24,142.2,3.5159]
[1728098338949,0.12502,142.25,142.21,5.16]
[1728098339150,3.5154,142.23,142.21,5.16]
[1728098339847,3.5154,142.23,142.18,16.6426]
[1728098340048,3.5154,142.23,142.19,5.16]
[1728098340351,3.5154,142.23,142.19,8.6762]
[1728098340859,3.5154,142.23,142.2,5.16]
[1728098342747,3.5154,142.23,142.19,3.5162]
[1728098343053,3.5154,142.23,142.2,5.16]
[1728098344756,3.5154,142.23,142.19,3.5162]
[1728098344952,3.5154,142.23,142.2,5.16]
[1728098346649,3.515,142.24,142.2,20.4958]
[1728098347755,3.5154,142.23,142.2,5.16]
[1728098347965,7.56,142.23,142.17,1.3481]
[1728098348157,7.56,142.22,142.17,8.9081]
[1728098348353,7.56,142.23,142.18,7.56]
[1728098348955,14.0449,142.24,142.18,7.56]
[1728098351059,3.516,142.2,142.18,7.56]
[1728098352557,3.5158,142.21,142.19,7.56]
[1728098352757,14.0449,142.24,142.19,11.0762]
[1728098352758,6.4849,142.24,142.19,11.0762]
[1728098352963,6.4849,142.24,142.21,7.56]
[1728098353159,3.5154,142.23,142.21,7.56]
[1728098353362,3.5154,142.23,142.22,7.56]
[1728098354554,3.5154,142.23,142.21,7.56]
[1728098355652,0.12502,142.25,142.22,7.56]
[1728098355853,0.12502,142.25,142.23,7.56]
[1728098357965,0.12502,142.25,142.23,12.72]
[1728098362768,0.12502,142.25,142.23,16.2352]
[1728098364065,0.12502,142.25,142.24,3.515]
[1728098364271,0.12502,142.25,142.23,12.72]
[1728098365071,0.12502,142.25,142.23,16.2351]
[1728098365669,0.12502,142.25,142.24,3.515]
[1728098368775,0.12502,142.25,142.23,16.2351]
[1728098368978,3.5152,142.24,142.19,1.4355]
[1728098369181,7.56,142.23,142.2,5.16]
[1728098369365,5.16,142.24,142.18,1.3362]
[1728098369676,7.56,142.2,142.15,77.0209914]
[1728098370069,3.5164,142.18,142.15,77.0209914]
[1728098370269,3.5164,142.18,142.15,7.56]
[1728098370470,7.56,142.19,142.14,14.0904]
[1728098371173,3.5169,142.17,142.14,6.5304]
[1728098371474,7.56,142.19,142.15,7.56]
[1728098371679,5.14,142.21,142.14,1.3704]
[1728098371882,3.5166,142.18,142.13,8.78262]
[1728098372682,3.5163,142.19,142.14,3.5173]
[1728098375683,5.14,142.21,142.13,5.26502]
[1728098376388,3.5169,142.17,142.13,5.26502]
[1728098377577,3.517,142.16,142.13,5.26502]
[1728098383491,3.5167,142.17,142.14,3.5174]
[1728098383680,3.5167,142.17,142.13,5.26502]
[1728098384389,3.5167,142.17,142.13,8.78262]
[1728098384686,3.517,142.16,142.13,8.78262]
[1728098389981,2.7493,142.23,142.13,5.26502]
[1728098390199,5.14,142.22,142.16,3.5169]
[1728098390381,5.14,142.22,142.14,11.82]
[1728098391587,5.14,142.22,142.13,5.26502]
[1728098391588,7.56,142.21,142.16,7.56]
[1728098392293,5.14,142.22,142.17,7.56]
[1728098392885,3.5159,142.21,142.17,3.5166]
[1728098393092,7.56,142.21,142.16,12.7]
[1728098393592,7.56,142.19,142.16,5.14]
[1728098393790,5.14,142.22,142.14,7.56]
[1728098394098,3.5165,142.18,142.15,7.56]
[1728098394388,2.7493,142.23,142.15,7.56]
[1728098394594,2.7493,142.23,142.16,7.56]
[1728098394790,3.5161,142.2,142.16,11.0769]
[1728098395093,7.56,142.21,142.16,7.56]
[1728098395395,3.5162,142.19,142.16,7.56]
[1728098401394,2.7493,142.23,142.17,7.56]
[1728098401599,10.3093,142.23,142.18,7.56]
[1728098401804,7.56,142.22,142.17,7.56]
[1728098402508,7.56,142.18,142.13,0.12502]
[1728098402803,7.11113116,142.17,142.13,3.64252]
[1728098403004,7.56,142.18,142.13,7.68502]
[1728098403205,7.56,142.18,142.13,5.26502]
[1728098403406,3.517,142.16,142.13,5.26502]
[1728098403806,7.56,142.18,142.13,5.26502]
[1728098404501,3.5168,142.17,142.13,8.78252]
[1728098404713,7.56,142.19,142.14,7.56]
[1728098405923,12.7,142.21,142.15,7.56]
[1728098406817,3.5165,142.18,142.14,3.5173]
[1728098407111,12.7,142.21,142.15,7.56]
[1728098407615,3.5164,142.19,142.15,7.56]
[1728098408914,18.9647,142.23,142.18,11.0764]
[1728098409117,15.4493,142.23,142.18,11.0764]
[1728098409313,0.12502,142.25,142.18,7.56]
[1728098409510,3.5154,142.23,142.19,11.0761]
[1728098409917,3.5155,142.22,142.19,7.56]
[1728098410607,3.5155,142.22,142.18,11.0764]
[1728098412018,7.56,142.23,142.17,3.5165]
[1728098412221,0.12502,142.25,142.17,7.56]
[1728098412222,7.56,142.21,142.17,7.56]
[1728098412423,7.56,142.21,142.16,12.7]
[1728098412615,3.5162,142.2,142.16,16.2169]
[1728098412917,7.56,142.2,142.14,12.7]
[1728098413109,7.56,142.2,142.14,16.2174]
[1728098413518,7.56,142.19,142.14,12.7]
[1728098413724,7.56,142.19,142.14,5.14]
[1728098414121,7.56,142.19,142.14,16.2173]
[1728098414122,3.5165,142.18,142.14,16.2173]
[1728098414715,7.56,142.19,142.14,12.7]
[1728098414920,3.5169,142.17,142.14,12.7]
[1728098416010,2.7372,142.21,142.16,7.56]
[1728098416318,10.2972,142.21,142.16,7.56]
[1728098416722,3.5163,142.19,142.16,7.56]
[1728098419018,7.56,142.19,142.14,5.14]
[1728098419224,3.5166,142.18,142.14,16.2174]
[1728098420923,3.5167,142.17,142.14,12.7]
[1728098427932,3.5167,142.17,142.14,5.14]
[1728098428929,11.13639501,142.18,142.13,0.12502]
[1728098429134,2.7372,142.21,142.13,0.12502]
[1728098429135,3.5172,142.15,142.13,0.12502]
[1728098433034,3.5174,142.14,142.13,0.12502]
[1728098437636,11.0774,142.14,142.13,0.12502]
[1728098449253,11.0774,142.14,142.04,72.28640713]
[1728098449254,7.56,142.14,142.04,72.28640713]
[1728098449448,7.56,142.09,142.05,3.5196]
[1728098449658,3.5189,142.08,142.05,3.5196]
[1728098451655,3.5189,142.08,142.04,13.8504]
[1728098454058,3.5189,142.08,142.04,12.5283]
[1728098454363,2.8155,142.13,142.06,7.56]
[1728098454662,12.7,142.12,142.08,7.56]
[1728098454860,16.2181,142.12,142.08,11.0788]
[1728098455662,3.5182,142.11,142.07,3.64402]
[1728098456466,11.0782,142.11,142.07,3.64402]
[1728098457664,7.56,142.11,142.07,3.64402]
[1728098457858,3.5184,142.1,142.07,3.64402]
[1728098458359,11.0783,142.11,142.07,3.64402]
[1728098459359,8.6578,142.13,142.09,3.5186]
[1728098459563,12.7,142.13,142.07,7.68502]
[1728098459958,3.518,142.12,142.09,11.0786]
[1728098460157,7.56,142.13,142.09,7.56]
[1728098460457,0.7175,142.2,142.1,3.5183]
[1728098460458,3.5174,142.15,142.1,3.5183]
[1728098460660,11.0774,142.15,142.1,7.56]
[1728098461152,11.0774,142.15,142.11,3.5181]
[1728098464659,3.5174,142.15,142.11,3.5181]
[1728098464865,11.0774,142.15,142.11,3.5181]
[1728098465762,3.5175,142.14,142.11,3.5181]
[1728098466466,5.14,142.16,142.07,5.26502]
[1728098466467,7.56,142.12,142.07,5.26502]
[1728098466661,7.56,142.1,142.07,5.26502]
[1728098466967,11.0789,142.08,142.07,0.12502]
[1728098469672,11.0787,142.09,142.07,0.12502]
[1728098481773,11.0789,142.08,142.07,0.12502]
[1728098484475,16.2189,142.08,142.07,0.12502]
[1728098484778,3.5201,142.04,142.02,1.4093]
[1728098484973,11.0801,142.04,142.02,1.4093]
[1728098485276,7.56,142.04,142.02,1.4093]
[1728098486973,11.08,142.04,142.02,1.4093]
[1728098487574,7.56,142.04,142.02,1.4093]
[1728098487770,3.5202,142.03,142.02,1.4093]
[1728098489184,3.5204,142.02,142.01,0.12502]
[1728098489370,11.0804,142.02,142.01,0.12502]
[1728098490573,3.5214,141.98,141.96,1.4393]
[1728098490881,11.0814,141.98,141.96,1.4393]
[1728098491375,3.5216,141.97,141.95,0.12502]
[1728098492485,3.5215,141.98,141.95,3.64712]
[1728098495783,7.56,142.0,141.95,0.12502]
[1728098495979,5.14,142.02,141.97,7.56]
[1728098496182,12.7,142.02,141.97,7.56]
[1728098496688,11.0805,142.02,141.98,3.5212]
[1728098498391,11.0805,142.02,141.99,3.5211]
[1728098498889,11.0803,142.03,142.0,3.5209]
[1728098499277,3.47066331,142.09,142.0,7.56]
[1728098499478,7.68502,142.07,142.03,7.56]
[1728098499687,7.56,142.06,142.02,7.56]
[1728098500081,7.56,142.06,142.01,8.9531]
[1728098500395,7.56,142.06,142.02,7.56]
[1728098501084,3.5197,142.05,142.02,7.56]
[1728098501688,7.56,142.06,142.03,3.52]
[1728098502891,11.0796,142.06,142.02,11.0804]
[1728098504389,11.0796,142.06,142.02,7.56]
[1728098504688,11.0796,142.06,142.03,3.5201]
[1728098508791,7.56,142.06,142.02,7.56]
[1728098508989,3.5197,142.05,142.02,11.0804]
[1728098509998,3.5197,142.05,142.02,3.5204]
[1728098511292,3.5197,142.05,142.01,1.3931]
[1728098511494,7.56,142.06,142.01,4.9137]
[1728098511700,7.56,142.04,141.98,7.56]
[1728098511885,7.56,142.02,141.99,3.521]
[1728098512499,11.0806,142.02,141.99,3.521]
[1728098514192,11.0803,142.03,142.0,3.5209]
[1728098514697,7.56,142.03,141.98,5.14]
[1728098514891,3.5208,142.01,141.98,8.6614]
[1728098515103,7.56,142.03,141.98,8.6614]
[1728098515493,3.5205,142.02,141.99,3.5211]
[1728098515799,7.56,142.01,141.97,1.4066]
[1728098515999,7.56,141.99,141.96,6.4489]
[1728098516394,7.56,141.99,141.96,1.3089]
[1728098516395,11.0814,141.99,141.96,1.3089]
[1728098516596,7.56,141.99,141.96,1.3089]
[1728098516891,3.56715472,142.01,141.95,0.12502]
[1728098516892,7.56,141.98,141.95,0.12502]
[1728098517092,3.56715472,142.01,141.95,0.12502]
[1728098517297,7.56,141.96,141.95,0.12502]
[1728098517688,11.0819,141.96,141.95,0.12502]
[1728098520994,3.5219,141.96,141.95,0.12502]
[1728098521297,11.0819,141.96,141.95,0.12502]
[1728098522189,3.5218,141.97,141.95,0.12502]
[1728098522395,11.0818,141.97,141.95,0.12502]
[1728098522595,3.5218,141.97,141.95,0.12502]
[1728098522796,11.0818,141.97,141.95,0.12502]
[1728098524302,3.5219,141.96,141.95,0.12502]
[1728098525202,11.0819,141.96,141.95,0.12502]
[1728098525996,7.56,141.96,141.95,0.12502]
[1728098526601,7.56,141.96,141.9,5.14]
[1728098526602,3.5227,141.93,141.9,5.14]
[1728098526805,11.0827,141.93,141.89,4.99152]
[1728098527507,7.56,141.91,141.89,0.12502]
[1728098528601,6.4543,141.96,141.89,0.12502]
[1728098528804,3.5227,141.93,141.89,0.12502]
[1728098529015,7.56,141.92,141.89,0.12502]
[1728098529315,7.56,141.92,141.89,3.64862]
[1728098529900,11.0829,141.92,141.89,3.64862]
[1728098531208,3.5229,141.92,141.89,3.64862]
[1728098531402,11.0829,141.92,141.89,3.64862]
[1728098531909,7.56,141.92,141.89,0.12502]
[1728098532313,3.5232,141.91,141.89,0.12502]
[1728098532611,7.56,141.92,141.89,0.12502]
[1728098533407,11.0829,141.92,141.89,0.12502]
[1728098534711,3.5232,141.91,141.89,0.12502]
[1728098535411,3.5234,141.9,141.89,0.12502]
[1728098536713,11.0833,141.91,141.89,0.12502]
[1728098536912,6.4543,141.96,141.89,7.68502]
[1728098537217,7.56,141.94,141.89,7.68502]
[1728098537419,7.56,141.94,141.9,7.56]
[1728098537619,3.59128931,141.97,141.9,12.7]
[1728098537620,7.56,141.95,141.9,12.7]
[1728098538115,7.56,141.95,141.92,3.5227]
[1728098538813,11.0821,141.95,141.92,3.5227]
[1728098543117,7.56,141.95,141.92,3.5227]
[1728098543920,1.4137,142.0,141.9,14.1427]
[1728098544129,7.56,141.99,141.93,7.56]
[1728098544323,7.56,141.99,141.94,5.14]
[1728098545231,7.56,141.99,141.96,3.5217]
[1728098546924,7.56,141.98,141.96,3.5217]
[1728098549235,2.0457,142.04,141.95,7.56]
[1728098549532,7.56,142.02,141.96,12.7]
[1728098549730,7.56,142.02,141.99,3.521]
[1728098550033,3.5203,142.03,141.99,3.521]
[1728098550225,3.64422,142.07,142.0,3.5209]
[1728098550426,7.56,142.06,142.0,7.56]
[1728098550930,7.56,142.06,142.01,1.3127]
[1728098551236,7.56,142.04,142.02,5.14]
[1728098551429,7.56,142.04,142.02,8.6604]
[1728098552542,0.12502,142.07,142.02,8.6604]
[1728098552543,0.12502,142.07,142.04,3.5197]
[1728098552838,7.68502,142.07,142.04,3.5197]
[1728098553241,7.68502,142.07,142.05,3.5196]
[1728098553541,7.68502,142.07,142.05,8.6596]
[1728098554138,0.12502,142.07,142.06,3.5194]
[1728098554438,7.68502,142.07,142.05,5.14]
[1728098554826,7.68502,142.07,142.02,1.4159]
[1728098555141,7.56,142.04,142.03,5.14]
[1728098556047,7.56,142.04,142.03,8.6601]
[1728098556745,0.12502,142.07,142.04,3.5199]
[1728098556948,0.12502,142.07,142.03,12.7]
[1728098557248,0.12502,142.07,142.04,7.56]